[Event "Titled Tuesday Blitz July 25 Early 2023"]
[White "ExchangeAB"]
[Black "Tsyhanchuk, Stanislav"]
[BlackFideId "13505130"]
[WhiteElo "2463"]
[BlackElo "2319"]
[Result "1/2-1/2"]
[Round "4"]
[TimeControl "180+2"]
[Date "2023.07.25"]
[WhiteClock "0:00:31"]
[BlackClock "0:00:18"]
[Board "179"]

1. d4 {[%clk 0:03:00]}  Nf6 {[%clk 0:02:59]} 2. Nc3 {[%clk 0:03:01]}  d5 {[%clk 0:02:59]} 3. Bf4 {[%clk 0:03:01]}  a6 {[%clk 0:02:59]} 4. e3 {[%clk 0:03:01]}  e6 {[%clk 0:02:59]} 5. Nf3 {[%clk 0:03:01]}  c5 {[%clk 0:02:59]} 6. Ne5 {[%clk 0:03:01]}  Nc6 {[%clk 0:02:59]} 7. Be2 {[%clk 0:02:51]}  Bd6 {[%clk 0:02:57]} 8. O-O {[%clk 0:02:42]}  O-O {[%clk 0:02:52]} 9. Na4 {[%clk 0:02:15]}  cxd4 {[%clk 0:02:49]} 10. exd4 {[%clk 0:02:14]}  Qc7 {[%clk 0:02:42]} 11. c4 {[%clk 0:01:22]}  Nxe5 {[%clk 0:02:29]} 12. dxe5 {[%clk 0:01:21]}  Bxe5 {[%clk 0:02:29]} 13. Bxe5 {[%clk 0:01:20]}  Qxe5 {[%clk 0:02:30]} 14. cxd5 {[%clk 0:01:16]}  Nxd5 {[%clk 0:02:28]} 15. Bf3 {[%clk 0:01:13]}  Bd7 {[%clk 0:02:11]} 16. Bxd5 {[%clk 0:01:01]}  Bxa4 {[%clk 0:02:06]} 17. Qxa4 {[%clk 0:01:02]}  Qxd5 {[%clk 0:02:05]} 18. Rfd1 {[%clk 0:01:00]}  Qe5 {[%clk 0:02:05]} 19. Qb3 {[%clk 0:00:53]}  b5 {[%clk 0:02:03]} 20. g3 {[%clk 0:00:53]}  Rfd8 {[%clk 0:02:02]} 21. a4 {[%clk 0:00:51]}  Rxd1+ {[%clk 0:01:47]} 22. Rxd1 {[%clk 0:00:52]}  bxa4 {[%clk 0:01:46]} 23. Qxa4 {[%clk 0:00:53]}  h5 {[%clk 0:01:34]} 24. b4 {[%clk 0:00:50]}  Qb5 {[%clk 0:01:30]} 25. Qa5 {[%clk 0:00:40]}  Kh7 {[%clk 0:01:20]} 26. Rd6 {[%clk 0:00:38]}  Rb8 {[%clk 0:01:15]} 27. Rxa6 {[%clk 0:00:35]}  Qxb4 {[%clk 0:01:15]} 28. Qxb4 {[%clk 0:00:36]}  Rxb4 {[%clk 0:01:15]} 29. h4 {[%clk 0:00:37]}  Kg6 {[%clk 0:01:14]} 30. Kg2 {[%clk 0:00:37]}  Kf5 {[%clk 0:01:13]} 31. Ra5+ {[%clk 0:00:37]}  e5 {[%clk 0:01:12]} 32. Ra7 {[%clk 0:00:35]}  Kg6 {[%clk 0:01:12]} 33. Ra5 {[%clk 0:00:34]}  f6 {[%clk 0:01:11]} 34. Ra8 {[%clk 0:00:35]}  Kf5 {[%clk 0:01:11]} 35. Kf3 {[%clk 0:00:36]}  Rb3+ {[%clk 0:01:11]} 36. Kg2 {[%clk 0:00:36]}  Rb6 {[%clk 0:01:04]} 37. Re8 {[%clk 0:00:36]}  g6 {[%clk 0:01:04]} 38. Rg8 {[%clk 0:00:36]}  Ra6 {[%clk 0:01:03]} 39. Re8 {[%clk 0:00:36]}  e4 {[%clk 0:01:01]} 40. Re7 {[%clk 0:00:36]}  Re6 {[%clk 0:00:54]} 41. Ra7 {[%clk 0:00:37]}  Kg4 {[%clk 0:00:51]} 42. Ra4 {[%clk 0:00:36]}  Kf5 {[%clk 0:00:47]} 43. Ra5+ {[%clk 0:00:36]}  Re5 {[%clk 0:00:47]} 44. Ra4 {[%clk 0:00:35]}  Rb5 {[%clk 0:00:47]} 45. Ra8 {[%clk 0:00:28]}  Re5 {[%clk 0:00:31]} 46. Ra4 {[%clk 0:00:27]}  g5 {[%clk 0:00:28]} 47. hxg5 {[%clk 0:00:27]}  fxg5 {[%clk 0:00:29]} 48. Rb4 {[%clk 0:00:27]}  e3 {[%clk 0:00:28]} 49. fxe3 {[%clk 0:00:28]}  Rxe3 {[%clk 0:00:29]} 50. Kf2 {[%clk 0:00:28]}  Re4 {[%clk 0:00:27]} 51. Rb2 {[%clk 0:00:26]}  Rc4 {[%clk 0:00:25]} 52. Kg2 {[%clk 0:00:26]}  Kg4 {[%clk 0:00:23]} 53. Ra2 {[%clk 0:00:26]}  h4 {[%clk 0:00:21]} 54. gxh4 {[%clk 0:00:26]}  Kxh4 {[%clk 0:00:22]} 55. Kg1 {[%clk 0:00:26]}  Kg3 {[%clk 0:00:19]} 56. Ra1 {[%clk 0:00:26]}  g4 {[%clk 0:00:17]} 57. Rb1 {[%clk 0:00:27]}  Rc3 {[%clk 0:00:17]} 58. Ra1 {[%clk 0:00:27]}  Kf3 {[%clk 0:00:17]} 59. Rb1 {[%clk 0:00:28]}  g3 {[%clk 0:00:17]} 60. Ra1 {[%clk 0:00:28]}  g2 {[%clk 0:00:15]} 61. Rb1 {[%clk 0:00:28]}  Kg3 {[%clk 0:00:15]} 62. Ra1 {[%clk 0:00:29]}  Rd3 {[%clk 0:00:15]} 63. Rb1 {[%clk 0:00:29]}  Rc3 {[%clk 0:00:15]} 64. Ra1 {[%clk 0:00:29]}  Rf3 {[%clk 0:00:15]} 65. Rb1 {[%clk 0:00:30]}  Re3 {[%clk 0:00:16]} 66. Ra1 {[%clk 0:00:30]}  Rf3 {[%clk 0:00:17]} 67. Rb1 {[%clk 0:00:31]}  Re3 {[%clk 0:00:17]} 68. Ra1 {[%clk 0:00:31]}  Rf3 {[%clk 0:00:18]} 1/2-1/2


[Site "https://www.chess.com"]

[Event "Titled Tuesday Blitz July 25 Early 2023"]
[White "Ljukin, Sergei"]
[Black "arturdailima"]
[WhiteFideId "14102200"]
[WhiteElo "2457"]
[BlackElo "2309"]
[Result "0-1"]
[Round "4"]
[TimeControl "180+2"]
[Date "2023.07.25"]
[WhiteClock "0:00:01"]
[BlackClock "0:00:37"]
[Board "180"]

1. e4 {[%clk 0:02:42]}  c5 {[%clk 0:02:59]} 2. Nf3 {[%clk 0:02:42]}  e6 {[%clk 0:02:59]} 3. d4 {[%clk 0:02:42]}  cxd4 {[%clk 0:03:00]} 4. Nxd4 {[%clk 0:02:43]}  Nc6 {[%clk 0:03:01]} 5. Nc3 {[%clk 0:02:42]}  Qc7 {[%clk 0:03:00]} 6. Be3 {[%clk 0:02:41]}  a6 {[%clk 0:03:00]} 7. Qd2 {[%clk 0:02:40]}  Nf6 {[%clk 0:03:00]} 8. f3 {[%clk 0:02:40]}  Bb4 {[%clk 0:02:55]} 9. O-O-O {[%clk 0:02:37]}  O-O {[%clk 0:02:54]} 10. a3 {[%clk 0:02:27]}  Ba5 {[%clk 0:02:51]} 11. Nb3 {[%clk 0:02:26]}  Bxc3 {[%clk 0:02:41]} 12. Qxc3 {[%clk 0:02:26]}  d5 {[%clk 0:02:41]} 13. Bg5 {[%clk 0:02:12]}  dxe4 {[%clk 0:02:37]} 14. Bxf6 {[%clk 0:02:09]}  Qf4+ {[%clk 0:02:37]} 15. Kb1 {[%clk 0:02:06]}  Qxf6 {[%clk 0:02:36]} 16. Qxf6 {[%clk 0:02:02]}  gxf6 {[%clk 0:02:36]} 17. fxe4 {[%clk 0:02:03]}  Ne5 {[%clk 0:02:28]} 18. Be2 {[%clk 0:01:56]}  Bd7 {[%clk 0:02:27]} 19. Bf3 {[%clk 0:01:53]}  Rfd8 {[%clk 0:02:21]} 20. Nd4 {[%clk 0:01:41]}  Kg7 {[%clk 0:02:15]} 21. b3 {[%clk 0:01:40]}  b5 {[%clk 0:02:10]} 22. Rd2 {[%clk 0:01:28]}  Rac8 {[%clk 0:01:53]} 23. Rhd1 {[%clk 0:01:25]}  Rc7 {[%clk 0:01:49]} 24. Be2 {[%clk 0:01:16]}  Rdc8 {[%clk 0:01:26]} 25. Rc1 {[%clk 0:01:04]}  Bc6 {[%clk 0:01:22]} 26. Bf3 {[%clk 0:00:53]}  Rd7 {[%clk 0:01:18]} 27. Rcd1 {[%clk 0:00:48]}  Rcd8 {[%clk 0:01:19]} 28. Nxc6 {[%clk 0:00:32]}  Rxd2 {[%clk 0:01:18]} 29. Nxd8 {[%clk 0:00:32]}  Nxf3 {[%clk 0:01:15]} 30. Kc1 {[%clk 0:00:18]}  Rxg2 {[%clk 0:01:11]} 31. Rd7 {[%clk 0:00:11]}  Ne5 {[%clk 0:01:11]} 32. Ra7 {[%clk 0:00:07]}  f5 {[%clk 0:01:11]} 33. Nxe6+ {[%clk 0:00:05]}  Kf6 {[%clk 0:01:09]} 34. Nf4 {[%clk 0:00:04]}  Rg1+ {[%clk 0:01:08]} 35. Kd2 {[%clk 0:00:04]}  fxe4 {[%clk 0:01:06]} 36. Rxa6+ {[%clk 0:00:04]}  Kf5 {[%clk 0:01:03]} 37. Nd5 {[%clk 0:00:04]}  Rg2+ {[%clk 0:00:58]} 38. Kc3 {[%clk 0:00:02]}  Ng4 {[%clk 0:00:48]} 39. Rf6+ {[%clk 0:00:01]}  Nxf6 {[%clk 0:00:47]} 40. Ne3+ {[%clk 0:00:01]}  Kf4 {[%clk 0:00:47]} 41. Nxg2+ {[%clk 0:00:02]}  Kf3 {[%clk 0:00:48]} 42. Nh4+ {[%clk 0:00:01]}  Kf2 {[%clk 0:00:37]} 0-1


[Site "https://www.chess.com"]

[Event "Titled Tuesday Blitz July 25 Early 2023"]
[White "Rakitic2010"]
[Black "rionelG"]
[WhiteElo "2455"]
[BlackElo "2293"]
[Result "0-1"]
[Round "4"]
[TimeControl "180+2"]
[Date "2023.07.25"]
[WhiteClock "0:00:03"]
[BlackClock "0:00:06"]
[Board "182"]

1. e4 {[%clk 0:03:00]}  c5 {[%clk 0:02:58]} 2. Nf3 {[%clk 0:02:59]}  d6 {[%clk 0:02:59]} 3. c3 {[%clk 0:02:59]}  Nf6 {[%clk 0:02:58]} 4. Be2 {[%clk 0:02:59]}  Nbd7 {[%clk 0:02:58]} 5. Qc2 {[%clk 0:02:57]}  Qc7 {[%clk 0:02:57]} 6. O-O {[%clk 0:02:57]}  b6 {[%clk 0:02:57]} 7. Na3 {[%clk 0:02:56]}  Bb7 {[%clk 0:02:58]} 8. d3 {[%clk 0:02:56]}  a6 {[%clk 0:02:57]} 9. Nc4 {[%clk 0:02:56]}  b5 {[%clk 0:02:57]} 10. Ne3 {[%clk 0:02:57]}  g6 {[%clk 0:02:57]} 11. a4 {[%clk 0:02:56]}  Bg7 {[%clk 0:02:55]} 12. Bd2 {[%clk 0:02:55]}  O-O {[%clk 0:02:53]} 13. h4 {[%clk 0:02:53]}  Ne5 {[%clk 0:02:41]} 14. Nxe5 {[%clk 0:02:53]}  dxe5 {[%clk 0:02:41]} 15. h5 {[%clk 0:02:50]}  e6 {[%clk 0:02:30]} 16. c4 {[%clk 0:02:45]}  bxc4 {[%clk 0:02:24]} 17. dxc4 {[%clk 0:02:43]}  Bxe4 {[%clk 0:02:20]} 18. Qc3 {[%clk 0:02:40]}  Nxh5 {[%clk 0:02:13]} 19. Bxh5 {[%clk 0:02:39]}  gxh5 {[%clk 0:02:13]} 20. Rae1 {[%clk 0:02:39]}  Bg6 {[%clk 0:02:12]} 21. Qa3 {[%clk 0:02:30]}  Rfd8 {[%clk 0:02:08]} 22. Rd1 {[%clk 0:02:27]}  Rd3 {[%clk 0:02:07]} 23. b3 {[%clk 0:02:10]}  Rad8 {[%clk 0:02:01]} 24. Qc1 {[%clk 0:01:59]}  Qb7 {[%clk 0:01:56]} 25. Ba5 {[%clk 0:01:55]}  R8d7 {[%clk 0:01:53]} 26. b4 {[%clk 0:01:49]}  cxb4 {[%clk 0:01:29]} 27. c5 {[%clk 0:01:50]}  Qc6 {[%clk 0:01:26]} 28. Rxd3 {[%clk 0:01:40]}  Bxd3 {[%clk 0:01:21]} 29. Rd1 {[%clk 0:01:40]}  b3 {[%clk 0:01:20]} 30. Qc3 {[%clk 0:01:34]}  e4 {[%clk 0:01:14]} 31. Qxb3 {[%clk 0:01:32]}  Qxc5 {[%clk 0:01:14]} 32. Qb8+ {[%clk 0:01:29]}  Qf8 {[%clk 0:01:14]} 33. Qg3 {[%clk 0:01:26]}  Qd6 {[%clk 0:00:55]} 34. Qh4 {[%clk 0:01:16]}  Qe5 {[%clk 0:00:49]} 35. Bd8 {[%clk 0:01:03]}  f5 {[%clk 0:00:37]} 36. Rc1 {[%clk 0:01:00]}  f4 {[%clk 0:00:18]} 37. Rc8 {[%clk 0:00:59]}  Bf8 {[%clk 0:00:17]} 38. Be7 {[%clk 0:00:50]}  Rxe7 {[%clk 0:00:15]} 39. Qxe7 {[%clk 0:00:50]}  Qg7 {[%clk 0:00:15]} 40. Qxe6+ {[%clk 0:00:50]}  Qf7 {[%clk 0:00:14]} 41. Qg4+ {[%clk 0:00:50]}  Kh8 {[%clk 0:00:14]} 42. Nd5 {[%clk 0:00:45]}  hxg4 {[%clk 0:00:13]} 43. Rd8 {[%clk 0:00:30]}  e3 {[%clk 0:00:13]} 44. fxe3 {[%clk 0:00:29]}  fxe3 {[%clk 0:00:13]} 45. Nxe3 {[%clk 0:00:30]}  Be2 {[%clk 0:00:11]} 46. Kh2 {[%clk 0:00:28]}  Kg7 {[%clk 0:00:10]} 47. Kg3 {[%clk 0:00:28]}  Be7 {[%clk 0:00:10]} 48. Rd4 {[%clk 0:00:26]}  Qf6 {[%clk 0:00:09]} 49. Kh2 {[%clk 0:00:18]}  Qe5+ {[%clk 0:00:07]} 50. Kh1 {[%clk 0:00:17]}  Bc5 {[%clk 0:00:06]} 51. Rd7+ {[%clk 0:00:16]}  Kg6 {[%clk 0:00:07]} 52. Rd5 {[%clk 0:00:08]}  Qxe3 {[%clk 0:00:06]} 53. Kh2 {[%clk 0:00:08]}  Qf4+ {[%clk 0:00:05]} 54. Kh1 {[%clk 0:00:07]}  g3 {[%clk 0:00:05]} 55. Rd6+ {[%clk 0:00:02]}  Bxd6 {[%clk 0:00:05]} 56. a5 {[%clk 0:00:03]}  Qf1# {[%clk 0:00:06]} 0-1


[Site "https://www.chess.com"]

[Event "Titled Tuesday Blitz July 25 Early 2023"]
[White "AndresDelgado77"]
[Black "Lopez, Henry"]
[BlackFideId "5203830"]
[WhiteElo "2292"]
[BlackElo "2453"]
[Result "0-1"]
[Round "4"]
[TimeControl "180+2"]
[Date "2023.07.25"]
[WhiteClock "0:00:03"]
[BlackClock "0:01:23"]
[Board "183"]

1. e4 {[%clk 0:03:00]}  c5 {[%clk 0:02:58]} 2. Nf3 {[%clk 0:02:59]}  d6 {[%clk 0:02:58]} 3. d4 {[%clk 0:02:59]}  cxd4 {[%clk 0:02:58]} 4. Qxd4 {[%clk 0:02:59]}  a6 {[%clk 0:02:57]} 5. Bg5 {[%clk 0:02:56]}  Nc6 {[%clk 0:02:57]} 6. Qd2 {[%clk 0:02:51]}  h6 {[%clk 0:02:57]} 7. Bh4 {[%clk 0:02:51]}  g5 {[%clk 0:02:57]} 8. Bg3 {[%clk 0:02:51]}  Bg7 {[%clk 0:02:58]} 9. Nc3 {[%clk 0:02:51]}  Nf6 {[%clk 0:02:58]} 10. Rd1 {[%clk 0:02:49]}  Nh5 {[%clk 0:02:57]} 11. Be2 {[%clk 0:02:24]}  O-O {[%clk 0:02:55]} 12. Nxg5 {[%clk 0:02:16]}  Nxg3 {[%clk 0:02:54]} 13. hxg3 {[%clk 0:02:15]}  hxg5 {[%clk 0:02:53]} 14. Qxg5 {[%clk 0:02:13]}  e6 {[%clk 0:02:44]} 15. Qh5 {[%clk 0:02:08]}  Re8 {[%clk 0:02:43]} 16. e5 {[%clk 0:01:57]}  Nxe5 {[%clk 0:02:40]} 17. Ne4 {[%clk 0:01:56]}  d5 {[%clk 0:02:37]} 18. Ng5 {[%clk 0:01:49]}  Qf6 {[%clk 0:02:37]} 19. Bd3 {[%clk 0:01:43]}  Nxd3+ {[%clk 0:02:35]} 20. Rxd3 {[%clk 0:01:43]}  Qg6 {[%clk 0:02:31]} 21. Qh4 {[%clk 0:01:07]}  Bd7 {[%clk 0:02:12]} 22. Rf3 {[%clk 0:01:03]}  f6 {[%clk 0:02:03]} 23. Nh3 {[%clk 0:00:54]}  e5 {[%clk 0:02:03]} 24. Qb4 {[%clk 0:00:37]}  Qe4+ {[%clk 0:02:01]} 25. Qxe4 {[%clk 0:00:36]}  dxe4 {[%clk 0:02:01]} 26. Re3 {[%clk 0:00:35]}  Bc6 {[%clk 0:02:01]} 27. g4 {[%clk 0:00:35]}  Rad8 {[%clk 0:01:58]} 28. Ng1 {[%clk 0:00:34]}  Kf7 {[%clk 0:01:53]} 29. Ne2 {[%clk 0:00:33]}  Kg6 {[%clk 0:01:45]} 30. Ng3 {[%clk 0:00:30]}  Bh6 {[%clk 0:01:42]} 31. Re2 {[%clk 0:00:28]}  e3 {[%clk 0:01:42]} 32. fxe3 {[%clk 0:00:24]}  e4 {[%clk 0:01:42]} 33. Nf5 {[%clk 0:00:20]}  Bg5 {[%clk 0:01:42]} 34. b3 {[%clk 0:00:09]}  Bd7 {[%clk 0:01:28]} 35. Nd6 {[%clk 0:00:08]}  Rh8 {[%clk 0:01:26]} 36. Rxh8 {[%clk 0:00:06]}  Rxh8 {[%clk 0:01:24]} 37. Nxe4 {[%clk 0:00:03]}  Bxg4 {[%clk 0:01:24]} 38. Rd2 {[%clk 0:00:03]}  Bxe3 {[%clk 0:01:23]} 0-1


[Site "https://www.chess.com"]

[Event "Titled Tuesday Blitz July 25 Early 2023"]
[White "Tanmay Jain"]
[Black "laimis61"]
[WhiteFideId "45015481"]
[WhiteElo "2451"]
[BlackElo "2291"]
[Result "1-0"]
[Round "4"]
[TimeControl "180+2"]
[Date "2023.07.25"]
[WhiteClock "0:00:58"]
[BlackClock "0:00:29"]
[Board "184"]

1. d4 {[%clk 0:03:00]}  d5 {[%clk 0:02:58]} 2. Nf3 {[%clk 0:03:01]}  Nf6 {[%clk 0:02:57]} 3. g3 {[%clk 0:03:01]}  e6 {[%clk 0:02:51]} 4. Bg2 {[%clk 0:03:02]}  a6 {[%clk 0:02:51]} 5. O-O {[%clk 0:03:02]}  b5 {[%clk 0:02:50]} 6. c3 {[%clk 0:02:56]}  Bb7 {[%clk 0:02:49]} 7. Nbd2 {[%clk 0:02:56]}  Nbd7 {[%clk 0:02:48]} 8. a4 {[%clk 0:02:53]}  Be7 {[%clk 0:02:45]} 9. b4 {[%clk 0:02:48]}  O-O {[%clk 0:02:45]} 10. Re1 {[%clk 0:02:47]}  Bd6 {[%clk 0:02:35]} 11. e4 {[%clk 0:02:39]}  dxe4 {[%clk 0:02:34]} 12. Ng5 {[%clk 0:02:40]}  bxa4 {[%clk 0:02:24]} 13. Ngxe4 {[%clk 0:02:31]}  Nxe4 {[%clk 0:02:22]} 14. Nxe4 {[%clk 0:02:31]}  Nb6 {[%clk 0:02:17]} 15. Bg5 {[%clk 0:02:23]}  Qc8 {[%clk 0:02:14]} 16. Nf6+ {[%clk 0:02:10]}  gxf6 {[%clk 0:01:14]} 17. Bxf6 {[%clk 0:02:09]}  Rd8 {[%clk 0:01:13]} 18. Qg4+ {[%clk 0:02:03]}  Kf8 {[%clk 0:01:13]} 19. Qg7+ {[%clk 0:01:27]}  Ke8 {[%clk 0:01:13]} 20. Qg8+ {[%clk 0:01:27]}  Bf8 {[%clk 0:01:11]} 21. Bxb7 {[%clk 0:01:28]}  Qxb7 {[%clk 0:01:10]} 22. Rxe6+ {[%clk 0:01:28]}  Kd7 {[%clk 0:01:01]} 23. Qxf7+ {[%clk 0:01:27]}  Kc8 {[%clk 0:00:59]} 24. Bxd8 {[%clk 0:01:28]}  Bd6 {[%clk 0:00:53]} 25. Re8 {[%clk 0:01:12]}  Qd5 {[%clk 0:00:42]} 26. Qxd5 {[%clk 0:00:57]}  Nxd5 {[%clk 0:00:41]} 27. Bxc7+ {[%clk 0:00:57]}  Kxc7 {[%clk 0:00:40]} 28. Rxa8 {[%clk 0:00:57]}  Nxc3 {[%clk 0:00:34]} 29. Rxa6 {[%clk 0:00:57]}  Bxb4 {[%clk 0:00:31]} 30. R6xa4 {[%clk 0:00:57]}  Nxa4 {[%clk 0:00:29]} 31. Rxa4 {[%clk 0:00:58]} 1-0


[Site "https://www.chess.com"]

[Event "Titled Tuesday Blitz July 25 Early 2023"]
[White "Zaksaite, Salomeja"]
[Black "Navalgund, Niranjan"]
[WhiteFideId "12801496"]
[BlackFideId "5030854"]
[WhiteElo "2285"]
[BlackElo "2449"]
[Result "1-0"]
[Round "4"]
[TimeControl "180+2"]
[Date "2023.07.25"]
[WhiteClock "0:00:04"]
[BlackClock "0:01:56"]
[Board "185"]

1. e4 {[%clk 0:02:58]}  e5 {[%clk 0:02:57]} 2. Nf3 {[%clk 0:02:57]}  Nf6 {[%clk 0:02:56]} 3. Nc3 {[%clk 0:02:57]}  Nc6 {[%clk 0:02:55]} 4. Bb5 {[%clk 0:02:57]}  Ne7 {[%clk 0:02:55]} 5. Nxe5 {[%clk 0:02:51]}  c6 {[%clk 0:02:53]} 6. Bc4 {[%clk 0:02:45]}  d5 {[%clk 0:02:52]} 7. exd5 {[%clk 0:02:45]}  cxd5 {[%clk 0:02:52]} 8. Bb5+ {[%clk 0:02:45]}  Nc6 {[%clk 0:02:51]} 9. Nxc6 {[%clk 0:02:41]}  bxc6 {[%clk 0:02:52]} 10. Bxc6+ {[%clk 0:02:40]}  Bd7 {[%clk 0:02:52]} 11. Bxa8 {[%clk 0:02:37]}  Qxa8 {[%clk 0:02:53]} 12. O-O {[%clk 0:02:35]}  Bd6 {[%clk 0:02:53]} 13. Re1+ {[%clk 0:02:33]}  Kd8 {[%clk 0:02:53]} 14. d4 {[%clk 0:02:33]}  h6 {[%clk 0:02:52]} 15. h3 {[%clk 0:02:23]}  Qc8 {[%clk 0:02:41]} 16. Qf3 {[%clk 0:02:21]}  h5 {[%clk 0:02:38]} 17. Bg5 {[%clk 0:01:59]}  Be6 {[%clk 0:02:25]} 18. Nxd5 {[%clk 0:01:54]}  Kd7 {[%clk 0:02:21]} 19. Nxf6+ {[%clk 0:01:39]}  gxf6 {[%clk 0:02:19]} 20. d5 {[%clk 0:01:32]}  fxg5 {[%clk 0:02:13]} 21. dxe6+ {[%clk 0:01:32]}  fxe6 {[%clk 0:02:14]} 22. Qf7+ {[%clk 0:01:32]}  Kc6 {[%clk 0:02:14]} 23. Qxe6 {[%clk 0:01:18]}  Qxe6 {[%clk 0:02:13]} 24. Rxe6 {[%clk 0:01:18]}  Kd7 {[%clk 0:02:14]} 25. Rg6 {[%clk 0:01:16]}  Be7 {[%clk 0:02:11]} 26. Rd1+ {[%clk 0:01:14]}  Ke8 {[%clk 0:02:11]} 27. Re1 {[%clk 0:01:14]}  Kf7 {[%clk 0:02:10]} 28. Rc6 {[%clk 0:01:10]}  Bf6 {[%clk 0:02:06]} 29. b3 {[%clk 0:01:02]}  Rd8 {[%clk 0:02:05]} 30. Rc7+ {[%clk 0:00:39]}  Kg6 {[%clk 0:02:04]} 31. Re2 {[%clk 0:00:33]}  g4 {[%clk 0:02:02]} 32. hxg4 {[%clk 0:00:30]}  hxg4 {[%clk 0:02:03]} 33. g3 {[%clk 0:00:30]}  a5 {[%clk 0:02:02]} 34. Rc6 {[%clk 0:00:27]}  Kf5 {[%clk 0:02:01]} 35. Rc5+ {[%clk 0:00:25]}  Kg6 {[%clk 0:02:01]} 36. Rxa5 {[%clk 0:00:25]}  Rd1+ {[%clk 0:02:02]} 37. Kg2 {[%clk 0:00:24]}  Bc3 {[%clk 0:02:02]} 38. Rc5 {[%clk 0:00:17]}  Bb4 {[%clk 0:02:02]} 39. Rc6+ {[%clk 0:00:17]}  Kf7 {[%clk 0:02:01]} 40. c3 {[%clk 0:00:16]}  Bf8 {[%clk 0:02:00]} 41. a4 {[%clk 0:00:14]}  Rb1 {[%clk 0:01:59]} 42. b4 {[%clk 0:00:13]}  Rb3 {[%clk 0:02:00]} 43. a5 {[%clk 0:00:13]}  Ra3 {[%clk 0:02:00]} 44. a6 {[%clk 0:00:13]}  Bg7 {[%clk 0:01:59]} 45. b5 {[%clk 0:00:12]}  Bxc3 {[%clk 0:01:58]} 46. Rxc3 {[%clk 0:00:08]}  Rxc3 {[%clk 0:01:57]} 47. Ra2 {[%clk 0:00:08]}  Ke6 {[%clk 0:01:55]} 48. a7 {[%clk 0:00:09]}  Rc6 {[%clk 0:01:55]} 49. bxc6 {[%clk 0:00:07]}  Kd6 {[%clk 0:01:55]} 50. a8=Q {[%clk 0:00:06]}  Kc5 {[%clk 0:01:55]} 51. c7 {[%clk 0:00:06]}  Kd6 {[%clk 0:01:55]} 52. c8=Q {[%clk 0:00:04]}  Ke5 {[%clk 0:01:56]} 53. Qa5+ {[%clk 0:00:04]}  Kf6 {[%clk 0:01:56]} 54. Qcd8+ {[%clk 0:00:04]}  Ke6 {[%clk 0:01:56]} 55. Qab6+ {[%clk 0:00:04]}  Ke5 {[%clk 0:01:56]} 56. Qdd6+ {[%clk 0:00:04]}  Kf5 {[%clk 0:01:56]} 57. Qbc5+ {[%clk 0:00:04]}  Ke4 {[%clk 0:01:56]} 58. Qdd4# {[%clk 0:00:04]} 1-0


[Site "https://www.chess.com"]

[Event "Titled Tuesday Blitz July 25 Early 2023"]
[White "Chemin, Justo Reinaldo"]
[Black "Liu, Casper"]
[WhiteFideId "2101580"]
[BlackFideId "1454153"]
[WhiteElo "2265"]
[BlackElo "2448"]
[Result "0-1"]
[Round "4"]
[TimeControl "180+2"]
[Date "2023.07.25"]
[WhiteClock "0:01:17"]
[BlackClock "0:01:53"]
[Board "186"]

1. e4 {[%clk 0:03:00]}  c5 {[%clk 0:02:58]} 2. Nf3 {[%clk 0:03:00]}  d6 {[%clk 0:02:58]} 3. d4 {[%clk 0:03:00]}  Nf6 {[%clk 0:02:59]} 4. Nc3 {[%clk 0:02:57]}  cxd4 {[%clk 0:02:59]} 5. Nxd4 {[%clk 0:02:57]}  Nc6 {[%clk 0:03:00]} 6. f3 {[%clk 0:02:47]}  e5 {[%clk 0:02:59]} 7. Nb3 {[%clk 0:02:45]}  Be7 {[%clk 0:03:00]} 8. Be3 {[%clk 0:02:45]}  Be6 {[%clk 0:03:00]} 9. Qd2 {[%clk 0:02:46]}  d5 {[%clk 0:03:00]} 10. exd5 {[%clk 0:02:44]}  Nxd5 {[%clk 0:03:01]} 11. Nxd5 {[%clk 0:02:43]}  Qxd5 {[%clk 0:03:02]} 12. Qxd5 {[%clk 0:02:41]}  Bxd5 {[%clk 0:03:03]} 13. O-O-O {[%clk 0:02:41]}  O-O-O {[%clk 0:03:00]} 14. Be2 {[%clk 0:02:19]}  Kb8 {[%clk 0:03:00]} 15. Rd2 {[%clk 0:02:07]}  Nb4 {[%clk 0:02:59]} 16. a3 {[%clk 0:01:59]}  Nxc2 {[%clk 0:02:58]} 17. Kxc2 {[%clk 0:01:56]}  Rc8+ {[%clk 0:02:59]} 18. Kb1 {[%clk 0:01:56]}  Bxb3 {[%clk 0:02:58]} 19. Rd7 {[%clk 0:01:54]}  Bf6 {[%clk 0:02:54]} 20. Bd1 {[%clk 0:01:32]}  Be6 {[%clk 0:02:52]} 21. Rd6 {[%clk 0:01:32]}  Bf5+ {[%clk 0:02:33]} 22. Ka2 {[%clk 0:01:25]}  Be6+ {[%clk 0:02:17]} 23. Bb3 {[%clk 0:01:22]}  Bxb3+ {[%clk 0:01:56]} 24. Kxb3 {[%clk 0:01:22]}  Rhd8 {[%clk 0:01:57]} 25. Rhd1 {[%clk 0:01:20]}  Rxd6 {[%clk 0:01:57]} 26. Rxd6 {[%clk 0:01:20]}  Rd8 {[%clk 0:01:57]} 27. Rxd8+ {[%clk 0:01:16]}  Bxd8 {[%clk 0:01:58]} 28. Kc4 {[%clk 0:01:16]}  Bb6 {[%clk 0:01:54]} 29. Kd5 {[%clk 0:01:17]}  Bxe3 {[%clk 0:01:54]} 30. Kxe5 {[%clk 0:01:17]}  Bc1 {[%clk 0:01:53]} 0-1


[Site "https://www.chess.com"]

[Event "Titled Tuesday Blitz July 25 Early 2023"]
[White "whiteglovethief"]
[Black "Jahnz, Fabian"]
[BlackFideId "4653300"]
[WhiteElo "2447"]
[BlackElo "2262"]
[Result "1-0"]
[Round "4"]
[TimeControl "180+2"]
[Date "2023.07.25"]
[WhiteClock "0:01:31"]
[BlackClock "0:01:59"]
[Board "188"]

1. Nf3 {[%clk 0:02:34]}  d5 {[%clk 0:02:58]} 2. d4 {[%clk 0:02:34]}  Bf5 {[%clk 0:02:58]} 3. c4 {[%clk 0:02:35]}  c6 {[%clk 0:02:54]} 4. e3 {[%clk 0:02:34]}  e6 {[%clk 0:02:53]} 5. Nc3 {[%clk 0:02:35]}  Nf6 {[%clk 0:02:52]} 6. Bd3 {[%clk 0:02:34]}  Bxd3 {[%clk 0:02:52]} 7. Qxd3 {[%clk 0:02:35]}  Nbd7 {[%clk 0:02:52]} 8. O-O {[%clk 0:02:35]}  dxc4 {[%clk 0:02:51]} 9. Qxc4 {[%clk 0:02:35]}  Nb6 {[%clk 0:02:51]} 10. Qe2 {[%clk 0:02:35]}  Be7 {[%clk 0:02:52]} 11. e4 {[%clk 0:02:35]}  O-O {[%clk 0:02:52]} 12. e5 {[%clk 0:02:35]}  Nfd5 {[%clk 0:02:50]} 13. Ne4 {[%clk 0:02:36]}  c5 {[%clk 0:02:45]} 14. dxc5 {[%clk 0:02:35]}  Nd7 {[%clk 0:02:44]} 15. Be3 {[%clk 0:02:34]}  Rc8 {[%clk 0:02:42]} 16. Rac1 {[%clk 0:02:33]}  Qc7 {[%clk 0:02:43]} 17. Nd6 {[%clk 0:02:28]}  Rcd8 {[%clk 0:02:30]} 18. a3 {[%clk 0:02:26]}  Nxe3 {[%clk 0:02:26]} 19. Qxe3 {[%clk 0:02:24]}  b6 {[%clk 0:02:22]} 20. Nb5 {[%clk 0:02:17]}  Qb8 {[%clk 0:02:18]} 21. c6 {[%clk 0:02:15]}  Nc5 {[%clk 0:02:18]} 22. c7 {[%clk 0:02:14]}  Qb7 {[%clk 0:02:12]} 23. cxd8=Q {[%clk 0:02:13]}  Rxd8 {[%clk 0:02:12]} 24. b4 {[%clk 0:02:10]}  Na4 {[%clk 0:02:07]} 25. Rc7 {[%clk 0:02:07]}  Qa6 {[%clk 0:02:08]} 26. Rxe7 {[%clk 0:02:04]}  Qxb5 {[%clk 0:02:08]} 27. Qf4 {[%clk 0:02:03]}  Rf8 {[%clk 0:02:07]} 28. Ng5 {[%clk 0:01:59]}  f6 {[%clk 0:02:06]} 29. Nxe6 {[%clk 0:01:54]}  Nc3 {[%clk 0:02:00]} 30. Rxg7+ {[%clk 0:01:39]}  Kh8 {[%clk 0:01:59]} 31. Qh6 {[%clk 0:01:31]}  Ne2+ {[%clk 0:01:58]} 32. Kh1 {[%clk 0:01:32]}  Ng3+ {[%clk 0:01:59]} 33. hxg3 {[%clk 0:01:32]}  Qxf1+ {[%clk 0:02:00]} 34. Kh2 {[%clk 0:01:32]}  Qb1 {[%clk 0:01:59]} 35. Nxf8 {[%clk 0:01:31]} 1-0


[Site "https://www.chess.com"]